bitfinex/quotes_ETHUSD_20240719
["timestamp","ask_amount","ask_price","bid_price","bid_amount"]
[1721370069991,2.89801,3450.7,3450.4,7.4]
[1721370070170,2.89801,3450.7,3450.2,2.3706]
[1721370070675,2.89762,3451.1,3450.3,2.89826]
[1721370070882,2.89747,3451.3,3450.5,2.3461]
[1721370071067,2.89755,3451.2,3450.5,2.3461]
[1721370071770,2.89746,3451.3,3450.5,5.24422]
[1721370071967,2.89721,3451.6,3450.5,2.3461]
[1721370071968,2.8973,3451.5,3450.5,2.3461]
[1721370072356,2.89738,3451.4,3450.5,2.3461]
[1721370072556,2.89738,3451.4,3450.5,5.9724666]
[1721370072960,2.89738,3451.4,3450.6,2.89803]
[1721370073180,2.89738,3451.4,3450.7,2.89795]
[1721370073876,2.89729,3451.5,3450.7,2.89795]
[1721370074080,0.289729,3451.4,3450.7,2.89795]
[1721370074294,2.89729,3451.5,3450.7,2.89795]
[1721370075691,2.89739,3451.4,3450.7,2.89795]
[1721370078156,2.89739,3451.4,3450.5,5.24421]
[1721370078157,2.89751,3451.3,3450.5,5.24421]
[1721370078773,2.8391,3451.8,3450.5,2.3461]
[1721370078974,2.89771,3451.0,3450.5,2.3461]
[1721370079185,2.89779,3450.9,3450.5,2.3461]
[1721370079962,2.89724,3451.6,3450.1,9.7086]
[1721370079963,2.89813,3450.5,3450.1,9.7086]
[1721370080262,4.721389,3451.4,3449.6,2.3086]
[1721370080263,2.89823,3450.4,3449.6,2.3086]
[1721370080806,2.89823,3450.4,3449.6,5.20748]
[1721370081890,2.89823,3450.4,3449.6,2.3086]
[1721370081891,3.477858,3450.4,3449.6,2.3086]
[1721370082198,2.89881,3449.7,3448.7,0.5969309]
[1721370082385,3.055,3450.8,3449.0,2.89933]
[1721370082386,2.8987,3449.9,3449.0,2.89933]
[1721370082587,3.478427,3449.9,3449.0,2.89933]
[1721370082760,2.89873,3449.8,3449.0,2.89933]
[1721370082962,2.89857,3450.0,3449.1,2.89928]
[1721370083312,2.89864,3449.9,3449.1,2.89928]
[1721370083609,2.8985,3450.1,3449.3,5.26942]
[1721370083906,2.89839,3450.2,3449.3,5.26938]
[1721370084074,2.89839,3450.2,3449.3,6.086238]
[1721370084380,2.89839,3450.2,3449.4,2.89904]
[1721370085309,2.89846,3450.1,3449.3,2.3703]
[1721370085971,2.3281,3450.7,3449.3,2.3703]
[1721370086172,2.89882,3449.7,3449.3,2.3703]
[1721370087226,2.8989,3449.6,3448.9,2.3703]
[1721370087515,2.89872,3449.8,3448.9,2.3703]
[1721370087671,2.89897,3449.5,3448.9,2.3703]
[1721370087867,2.89907,3449.4,3448.9,2.3703]
[1721370088700,2.89914,3449.3,3448.9,2.3703]
[1721370090124,2.89901,3449.5,3448.9,2.3703]
[1721370090488,2.89906,3449.4,3448.9,2.3703]
[1721370090688,3.478855,3449.4,3448.9,2.3703]
[1721370092133,2.89889,3449.6,3448.6,5.28812]
[1721370092134,2.89914,3449.3,3448.6,5.28812]
[1721370092997,2.89914,3449.3,3448.6,2.3884]
[1721370093202,2.89922,3449.2,3448.6,2.3884]
[1721370093512,2.8993,3449.1,3448.6,2.3884]
[1721370094149,2.89956,3448.8,3448.6,2.3884]
[1721370094320,2.89939,3449.0,3448.6,2.3884]
[1721370095214,2.89949,3448.9,3448.6,2.3884]
[1721370097352,0.579862,3449.0,3448.6,2.3884]
[1721370097527,3.479272,3449.0,3448.6,2.3884]
[1721370097865,2.89947,3448.9,3448.3,2.4236]
[1721370100641,2.89956,3448.8,3448.3,2.4236]
[1721370101152,2.89964,3448.7,3448.3,2.4236]
[1721370101667,2.89973,3448.6,3448.3,2.4236]
[1721370103907,2.89956,3448.8,3448.2,2.2679]
[1721370105989,2.89965,3448.7,3448.2,2.2679]
[1721370106376,2.89956,3448.8,3448.2,2.2679]
[1721370106570,2.89987,3448.5,3448.2,2.2679]
[1721370106971,2.89987,3448.5,3447.8,2.3056]
[1721370108009,2.89989,3448.4,3447.8,2.3056]
[1721370108461,2.89977,3448.6,3447.8,2.3056]
[1721370108680,2.89965,3448.7,3447.8,2.3056]
[1721370108880,2.89973,3448.6,3447.8,2.3056]
[1721370109410,2.89999,3448.3,3447.8,2.3056]
[1721370109796,2.90006,3448.2,3447.8,2.3056]
[1721370110234,2.90015,3448.1,3447.5,2.3152]
[1721370111106,2.90025,3448.0,3447.5,2.3152]
[1721370111309,2.90031,3447.9,3447.5,2.3152]
[1721370111510,2.90031,3447.9,3447.1,2.3584]
[1721370111511,2.90049,3447.7,3447.1,2.3584]
[1721370112290,2.9006,3447.6,3447.1,2.3584]
[1721370112503,2.9006,3447.6,3446.5,2.90147]
[1721370112504,2.90059,3447.6,3446.6,2.4125]
[1721370112821,2.90081,3447.4,3446.6,2.4125]
[1721370112984,2.90084,3447.3,3446.6,2.4125]
[1721370113495,2.90109,3447.0,3446.6,2.4125]
[1721370114494,3.481049,3447.3,3446.6,2.4125]
[1721370114723,2.90065,3447.6,3446.6,2.4125]
[1721370115031,3.0,3447.9,3446.6,5.31385]
[1721370115032,2.90065,3447.5,3446.6,5.31385]
[1721370115216,2.90065,3447.5,3446.7,2.9013]
[1721370115608,2.90065,3447.5,3446.6,2.4125]
[1721370115609,2.90076,3447.4,3446.6,5.31389]
[1721370115814,2.90084,3447.3,3446.6,2.4125]
[1721370116007,2.90094,3447.2,3446.6,2.4125]
[1721370116820,3.48099,3447.3,3446.6,2.4125]
[1721370117533,2.90092,3447.2,3446.6,2.4125]
[1721370118799,2.901,3447.1,3446.6,2.4125]
[1721370120404,0.58016,3447.3,3446.6,2.4125]
[1721370120405,3.48102,3447.3,3446.6,2.4125]
[1721370120606,2.90091,3447.2,3446.6,2.4125]
[1721370124611,2.90091,3447.2,3446.6,2.4125]
[1721370125114,2.9007,3447.5,3446.6,2.4125]
[1721370125312,2.90082,3447.3,3446.6,2.4125]
[1721370126415,2.9009,3447.2,3446.6,2.4125]
[1721370126646,0.29009,3447.1,3446.6,2.4125]
[1721370126857,3.19108,3447.1,3446.6,2.4125]
[1721370128153,2.90117,3446.9,3446.6,2.4125]
[1721370128316,2.90117,3446.9,3446.3,2.2627]
[1721370129644,0.55,3447.0,3446.3,2.2627]
[1721370129836,0.55,3447.0,3446.3,3.519144]
[1721370130434,0.55,3447.0,3446.3,2.2627]
[1721370130634,2.90083,3447.3,3446.4,2.90156]
[1721370130836,3.55,3447.2,3446.5,2.4796]
[1721370131035,0.55,3447.2,3446.5,2.4796]
[1721370131348,3.4509,3447.2,3446.5,2.4796]
[1721370131556,4.691556,3447.2,3446.5,2.4796]
[1721370132257,1.790656,3447.2,3446.5,2.4796]
[1721370132415,4.691566,3447.2,3446.5,2.4796]
[1721370135360,2.901,3447.1,3446.5,2.4796]
[1721370135654,1.790656,3447.2,3446.5,2.4796]
[1721370135856,1.240656,3447.2,3446.5,2.4796]
[1721370136151,0.88730951,3447.1,3446.5,2.4796]
[1721370136453,3.78834951,3447.1,3446.5,2.4796]
[1721370136651,2.90108,3447.0,3446.5,2.4796]
[1721370138419,0.88730951,3447.1,3446.5,2.4796]
[1721370138618,3.88730951,3447.1,3446.5,2.4796]
[1721370140154,3.0,3447.1,3446.5,2.4796]
[1721370140316,5.9009,3447.2,3446.5,2.4796]
[1721370141657,2.90107,3447.0,3446.5,2.4796]
[1721370142554,2.90107,3447.0,3446.1,2.9018]
[1721370142756,5.9009,3447.2,3446.1,2.9018]
[1721370142757,2.90117,3446.9,3446.2,2.4018]
[1721370144032,2.90124,3446.8,3446.2,2.4018]
[1721370146068,4.03417,3447.1,3446.2,2.4018]
[1721370146069,1.13318,3447.1,3446.2,2.4018]
[1721370146267,2.90124,3446.8,3446.2,2.4018]
[1721370146433,2.90149,3446.5,3446.2,2.4018]
[1721370148743,2.90149,3446.5,3445.8,2.4871]
[1721370149370,2.90176,3446.2,3445.8,2.4871]
[1721370152183,2.90143,3446.6,3445.8,2.4871]
[1721370152390,3.650624,3446.7,3445.9,2.2958]
[1721370152391,3.0,3446.7,3445.9,2.2958]
[1721370152576,2.90115,3446.9,3445.9,2.2958]
[1721370152577,3.0,3446.8,3445.9,2.2958]
[1721370152881,3.0,3446.8,3446.1,2.4871]
[1721370153290,5.90126,3446.8,3446.1,2.4871]
[1721370153493,3.880241,3446.8,3446.1,2.4871]
[1721370155388,6.781491,3446.8,3446.1,2.4871]
[1721370155749,2.90133,3446.7,3446.1,2.4871]
[1721370155996,2.9015,3446.5,3446.1,2.4871]
[1721370156291,2.90168,3446.3,3445.5,2.4224]
[1721370156656,2.90178,3446.2,3445.5,2.4224]
[1721370157980,3.482126,3446.2,3445.5,2.4224]
[1721370158556,3.482126,3446.2,3444.9,2.4181]
[1721370158557,2.90247,3445.4,3444.9,2.4181]
[1721370158788,3.055,3445.9,3444.9,2.4181]
[1721370158789,2.9023,3445.6,3444.9,2.4181]
[1721370158992,0.44714433,3445.6,3444.9,2.4181]
[1721370159217,2.90233,3445.5,3444.9,2.4181]
[1721370159592,2.90265,3445.2,3444.5,2.4181]
[1721370160625,2.90269,3445.1,3444.5,2.4181]
[1721370160825,3.45244,3445.4,3444.5,2.4181]
[1721370161137,0.69545843,3445.3,3444.5,2.4181]
[1721370161804,3.055,3445.5,3444.7,2.90299]
[1721370161805,2.90234,3445.5,3444.7,2.90299]
[1721370162546,2.90234,3445.5,3444.5,2.4181]
[1721370162547,2.90234,3445.5,3444.5,5.32122]
[1721370163241,2.90234,3445.5,3444.5,2.4181]
[1721370164005,2.90234,3445.5,3444.6,2.90309]
[1721370164918,0.44714433,3445.6,3444.7,2.90299]
[1721370165119,3.44714433,3445.6,3444.7,2.90299]
[1721370165321,0.63493143,3445.5,3444.8,2.90291]
[1721370165549,0.63493143,3445.5,3444.9,2.3276]
[1721370165724,0.63493143,3445.5,3444.3,2.9033]
[1721370165921,0.63493143,3445.5,3444.2,2.90337]
[1721370165922,2.90251,3445.3,3444.4,5.3575]
[1721370166128,0.55,3445.4,3444.5,2.90317]
[1721370166342,1.37565557,3445.4,3444.5,2.90317]
[1721370166515,4.27808557,3445.4,3444.5,2.90317]
[1721370167055,4.27808557,3445.4,3444.4,2.4543]
[1721370167056,3.0,3445.6,3444.8,2.90286]
[1721370167616,3.0,3445.6,3444.9,2.2555]
[1721370167951,3.0,3446.0,3445.3,2.90244]
[1721370168166,10.35157,3446.5,3445.4,2.90241]
[1721370168167,2.90163,3446.4,3445.4,2.90241]
[1721370168447,2.90166,3446.3,3445.4,2.90241]
[1721370168653,0.580323,3446.2,3445.4,2.90241]
[1721370169347,3.580323,3446.2,3445.4,2.90241]
[1721370169542,0.580323,3446.2,3445.6,2.90224]
[1721370169850,5.20661,3446.8,3445.7,5.27354]
[1721370169851,2.90136,3446.7,3445.7,5.27354]
[1721370170266,2.90141,3446.6,3445.7,5.27354]
[1721370170952,2.90125,3446.8,3445.7,2.3714]
[1721370172053,2.90109,3447.0,3445.8,2.90207]
[1721370172261,3.55,3446.9,3445.8,2.90207]
[1721370172443,2.90135,3446.7,3445.7,2.3714]
[1721370172644,3.55,3446.6,3445.7,2.3714]
[1721370173058,3.55,3446.6,3445.7,5.2735]
[1721370173236,5.90141,3446.6,3445.7,5.2735]
[1721370173433,2.9015,3446.5,3445.7,2.3714]
[1721370173636,0.880282,3446.4,3445.7,2.3714]
[1721370175330,0.880282,3446.4,3445.7,5.27355]
[1721370175551,5.90141,3446.6,3445.8,2.90207]
[1721370177560,5.90141,3446.6,3445.7,2.3714]
[1721370179645,2.90151,3446.5,3445.7,2.3714]
[1721370180035,3.0,3446.6,3445.7,5.27348]
[1721370180237,3.0,3446.6,3445.8,2.90206]
[1721370180436,0.6546439,3446.5,3445.8,2.90206]
[1721370180832,2.90117,3446.9,3444.6,10.4]
[1721370180833,2.90104,3447.1,3446.0,2.9019]
[1721370181071,3.0,3447.0,3446.1,2.3726]
[1721370181645,2.90083,3447.3,3446.2,2.90167]
[1721370181845,2.9009,3447.2,3446.3,2.90163]
[1721370182369,2.90074,3447.4,3446.4,2.90155]
[1721370182571,3.480951,3447.3,3446.4,2.90155]
[1721370182939,3.0,3447.2,3446.4,2.90155]
[1721370185586,5.90091,3447.2,3446.2,2.90169]
[1721370186085,2.90099,3447.1,3446.2,2.90169]
[1721370186312,3.8391761,3447.1,3446.2,2.90169]
[1721370186595,0.9381861,3447.1,3446.3,2.90165]
[1721370186766,0.9381861,3447.1,3446.4,2.3045]
[1721370188058,2.90107,3447.0,3446.4,2.3045]
[1721370188250,0.68392561,3446.9,3446.4,2.3045]
[1721370191495,5.90092,3447.2,3446.4,2.3045]
[1721370191890,2.90108,3447.0,3446.4,2.3045]
[1721370192263,2.90118,3446.9,3446.4,2.3045]
[1721370194512,2.90101,3447.1,3446.4,2.3045]
[1721370195061,3.0,3447.2,3446.4,2.3045]
[1721370195366,3.0,3447.3,3446.5,2.90148]
[1721370195568,2.9004,3447.8,3446.7,2.3949]
[1721370195814,2.9004,3447.8,3446.7,5.29622]
[1721370195970,2.9004,3447.8,3446.8,2.4573]
[1721370196167,2.9004,3447.8,3446.8,5.35848]
[1721370196385,2.90048,3447.7,3446.8,5.35848]
[1721370196572,2.90048,3447.7,3446.9,2.90115]
[1721370196769,3.480551,3447.7,3446.9,2.90115]
[1721370197168,2.90048,3447.7,3446.9,2.90115]
[1721370198172,2.90048,3447.7,3446.8,2.4573]
[1721370198817,2.9004,3447.8,3446.8,2.4573]
[1721370198970,3.0,3447.7,3446.8,2.4573]
[1721370199510,5.90049,3447.7,3446.8,5.35854]
[1721370199683,3.20049,3447.7,3446.8,5.35854]
[1721370199887,0.3,3447.7,3447.0,2.90106]
[1721370200122,3.0,3447.8,3447.1,2.2811]
[1721370200339,3.0,3447.8,3447.1,5.18208]
[1721370200489,3.0,3448.1,3447.1,5.18208]
[1721370201201,3.0,3448.1,3447.2,2.90086]
[1721370201202,2.90023,3448.0,3447.2,2.90086]
[1721370201409,3.055,3448.4,3447.2,2.90086]
[1721370201410,2.89992,3448.4,3447.4,2.90068]
[1721370201593,2.89982,3448.5,3447.4,2.90068]
[1721370202105,2.89998,3448.3,3447.4,2.90068]
[1721370202732,2.8999,3448.4,3447.5,2.90063]
[1721370202898,3.0,3448.3,3447.5,2.90063]
[1721370203290,2.8997,3448.7,3447.7,2.90046]
[1721370204013,2.8997,3448.7,3447.6,2.4274]
[1721370204014,2.89966,3448.7,3447.6,2.4274]
[1721370204229,2.8999,3448.4,3447.6,2.4274]
[1721370204527,2.89978,3448.6,3447.6,5.32795]
[1721370205209,3.0,3448.5,3447.6,5.32795]
[1721370205723,3.879944,3448.5,3447.6,5.32795]
[1721370205922,0.879944,3448.5,3447.6,5.32795]
[1721370206922,2.8999,3448.4,3447.6,5.32795]
[1721370207502,2.8999,3448.4,3447.6,2.4274]
[1721370207905,2.8999,3448.4,3447.6,2.90053]
[1721370208115,5.89974,3448.6,3447.6,2.90053]
[1721370208116,5.89974,3448.6,3447.7,2.3465]
[1721370208318,5.89974,3448.6,3447.7,5.24691]
[1721370208497,3.0,3448.6,3447.8,2.90037]
[1721370208693,3.0,3448.7,3447.8,2.90037]
[1721370208895,2.89961,3448.8,3448.1,2.3465]
[1721370209555,2.89965,3448.7,3448.1,2.3465]
[1721370209834,2.89977,3448.6,3448.1,2.3465]
[1721370210205,2.89987,3448.5,3448.1,2.3465]
[1721370210397,2.8999,3448.4,3447.6,2.4107]
[1721370210598,3.479863,3448.4,3447.6,2.4107]
[1721370212405,2.8999,3448.4,3447.6,2.4107]
[1721370212739,3.055,3448.6,3447.6,2.4107]
[1721370213044,2.89937,3449.1,3446.9,2.4269]
[1721370213045,2.90079,3447.4,3446.9,2.4269]
[1721370213250,0.290079,3447.3,3446.9,2.4269]
[1721370213544,2.90079,3447.4,3446.9,2.4269]
[1721370213901,2.90092,3447.2,3446.4,2.4269]
[1721370214102,3.055,3447.7,3446.4,2.4269]
[1721370214301,2.90114,3447.0,3446.4,2.4269]
[1721370214601,2.90116,3446.9,3446.4,2.4269]
[1721370215840,2.90103,3447.1,3446.4,2.4269]
[1721370216046,2.90088,3447.3,3446.4,2.4269]
[1721370216373,2.90099,3447.1,3446.4,2.4269]
[1721370216784,2.9011,3447.0,3446.4,2.4269]
[1721370216986,2.90117,3446.9,3446.4,2.4269]
[1721370218454,0.580201,3447.0,3446.4,2.4269]
[1721370218455,2.90127,3446.8,3446.4,2.4269]
[1721370219543,3.481281,3447.0,3446.0,2.4269]
[1721370219544,2.9015,3446.5,3446.0,2.4269]
[1721370220578,2.90143,3446.6,3446.0,2.4269]
[1721370221395,2.90161,3446.4,3446.0,2.4269]
[1721370221884,2.90161,3446.4,3445.6,2.4064]
[1721370222583,2.90133,3446.7,3445.6,2.4064]
[1721370222799,2.90155,3446.5,3445.6,2.4064]
[1721370223859,2.90155,3446.5,3445.6,5.30862]
[1721370224056,2.90155,3446.5,3445.7,0.821103]
[1721370224687,2.90155,3446.5,3445.7,3.723253]
[1721370225982,2.90125,3446.8,3445.9,2.4064]
[1721370226400,3.0,3446.7,3445.9,2.4064]
[1721370227188,5.90133,3446.7,3445.9,2.4064]
[1721370227399,2.90143,3446.6,3445.9,2.4064]
[1721370229393,2.90129,3446.8,3445.9,2.4064]
[1721370229594,3.0,3446.7,3445.9,5.30839]
[1721370229784,2.90129,3446.8,3445.9,2.4064]
[1721370229983,3.0,3446.9,3445.6,2.4026]
[1721370230185,2.90155,3446.5,3445.6,5.30483]
[1721370232004,2.90133,3446.7,3444.5,4.797]
[1721370232005,2.90133,3446.7,3445.8,2.3676]
[1721370232407,2.90141,3446.6,3445.8,2.3676]
[1721370234116,2.90149,3446.5,3445.8,2.3676]
[1721370234815,2.90158,3446.4,3445.8,2.3676]
[1721370236911,2.90167,3446.3,3445.8,2.3676]
[1721370237231,2.90191,3446.0,3445.8,2.3676]
[1721370240479,2.90191,3446.0,3445.2,2.3456]
[1721370240693,2.902,3445.9,3445.2,2.3456]
[1721370241382,2.90217,3445.7,3445.2,2.3456]
[1721370242016,3.77693133,3446.3,3445.2,2.3456]
[1721370242017,2.90209,3445.8,3445.2,2.3456]
[1721370242222,2.90217,3445.7,3445.2,2.3456]
[1721370243026,2.90217,3445.7,3444.9,2.90284]
[1721370243027,2.90217,3445.7,3444.9,5.24844]
[1721370244618,3.0,3446.2,3444.9,5.24844]
[1721370244619,2.90235,3445.5,3444.9,2.3456]
[1721370248020,2.90226,3445.6,3444.9,2.3456]
[1721370251922,2.90244,3445.4,3444.9,2.3456]
[1721370253060,2.90265,3445.2,3444.9,2.3456]
[1721370253232,3.48295,3445.2,3444.9,2.3456]
[1721370254365,2.90265,3445.2,3444.9,2.3456]
[1721370255960,2.9025,3445.3,3444.9,2.3456]
[1721370256127,2.9026,3445.2,3444.9,2.3456]
[1721370256723,2.90243,3445.4,3444.9,2.3456]
[1721370256925,2.90251,3445.3,3444.9,2.3456]
[1721370257966,3.788495,3445.3,3444.9,2.3456]
[1721370258139,2.90259,3445.2,3444.9,2.3456]
[1721370260364,2.9025,3445.4,3444.9,2.3456]
[1721370261253,2.90253,3445.3,3444.9,2.3456]
[1721370261561,2.9025,3445.4,3444.9,2.3456]
[1721370261857,2.90251,3445.3,3444.9,2.3456]
[1721370262333,2.90259,3445.2,3444.9,2.3456]
[1721370266056,2.90259,3445.2,3444.3,2.4854]
[1721370266852,2.90259,3445.2,3444.3,5.38873]
[1721370267853,2.90267,3445.1,3444.3,2.4854]
[1721370268163,2.90267,3445.1,3444.3,3.89680871]
[1721370268522,2.90267,3445.1,3444.3,2.4854]
[1721370269769,2.90276,3445.0,3444.3,2.4854]
[1721370276174,2.9026,3445.2,3444.4,2.2636]
[1721370276531,2.90268,3445.1,3444.4,2.2636]
[1721370279754,2.90276,3445.0,3444.4,2.2636]
[1721370280743,2.90262,3445.2,3444.4,2.2636]
[1721370281081,2.90269,3445.1,3444.4,2.2636]
[1721370283159,2.90276,3445.0,3444.4,2.2636]
[1721370283581,3.483295,3445.0,3444.4,2.2636]
[1721370284858,2.90284,3444.9,3444.4,2.2636]
[1721370287285,2.90311,3444.6,3444.4,2.2636]
[1721370292663,2.90311,3444.6,3444.1,2.3058]
[1721370292863,2.90292,3444.8,3444.1,2.3058]
[1721370293394,2.90301,3444.7,3444.1,2.3058]
[1721370294105,2.90301,3444.7,3444.1,3.53033069]
[1721370294616,2.90276,3445.0,3444.2,2.3058]
[1721370294815,3.0,3444.9,3444.2,2.3058]
[1721370295608,3.0,3444.9,3444.2,5.20923]
[1721370298228,3.0,3444.9,3444.2,2.3058]
[1721370298229,5.90284,3444.9,3444.2,2.3058]
[1721370298528,2.90284,3444.9,3444.2,2.3058]
[1721370299333,2.90284,3444.9,3444.2,5.22316562]
[1721370301206,2.90284,3444.9,3444.2,2.3058]
[1721370301401,2.90316,3444.6,3444.2,2.3058]
[1721370308739,2.90286,3444.9,3444.2,2.3058]
[1721370308948,2.90294,3444.8,3444.2,2.3058]
[1721370310955,2.90286,3444.9,3444.2,2.3058]
[1721370310956,2.90302,3444.7,3444.2,2.3058]
[1721370311956,2.90319,3444.5,3444.2,2.3058]
[1721370313413,2.90306,3444.7,3444.2,2.3058]
[1721370314535,2.90293,3444.8,3444.2,2.3058]
[1721370314741,2.90293,3444.8,3444.3,2.4532]
[1721370315618,14.73633695,3445.5,3444.3,2.4532]
[1721370315619,4.73131453,3445.3,3444.4,2.4532]
[1721370315822,2.90261,3445.2,3444.5,2.4633]
[1721370316539,2.90261,3445.2,3444.6,2.3928]
[1721370317030,2.90268,3445.1,3444.6,2.3928]
[1721370318236,4.73145836,3445.4,3444.6,2.3928]
[1721370318555,3.0,3445.3,3444.6,2.3928]
[1721370319658,2.90258,3445.2,3444.6,2.3928]
[1721370320568,3.0,3445.3,3444.8,2.3651]
[1721370320723,3.0,3445.4,3444.8,2.3651]
[1721370320924,4.82896949,3445.5,3444.8,2.9029]
[1721370321126,4.82896949,3445.5,3444.9,2.447]
[1721370322473,3.0,3445.4,3445.0,2.447]
[1721370324513,1.82896949,3445.5,3445.4,2.447]
[1721370324671,1.82896949,3445.5,3445.4,5.34942]
[1721370326075,7.45,3446.1,3445.4,2.90242]
[1721370326278,8.485175,3446.1,3445.5,2.3193]
[1721370326992,11.387025,3446.1,3445.5,2.3193]
[1721370327185,7.45,3446.1,3445.5,2.3193]
[1721370327367,10.35184,3446.1,3445.5,2.3193]
[1721370328418,2.90169,3446.3,3445.6,2.4115]
[1721370328718,2.90185,3446.1,3445.6,2.4115]
[1721370328872,3.482204,3446.1,3445.6,2.4115]
[1721370329423,2.90202,3445.9,3445.6,2.4115]
[1721370330619,0.580354,3446.1,3445.6,2.4115]
[1721370330620,3.482224,3446.1,3445.6,2.4115]
[1721370330774,2.90187,3446.1,3445.6,2.4115]
[1721370331504,2.90171,3446.3,3445.6,2.4115]
[1721370332316,2.90158,3446.4,3445.7,2.3192]
[1721370333082,2.90133,3446.7,3445.8,2.3192]
[1721370333421,2.90155,3446.5,3445.8,2.3192]
[1721370333919,2.90133,3446.7,3445.9,2.3192]
[1721370334074,2.90133,3446.7,3446.0,2.3192]
[1721370334277,2.90117,3446.9,3446.1,2.3192]
[1721370334520,2.90117,3446.9,3446.1,5.22095]
[1721370334682,2.90117,3446.9,3446.2,2.4791]
[1721370335708,2.90124,3446.8,3446.2,2.4791]
[1721370336637,5.80256,3446.8,3446.2,2.4791]
[1721370337204,2.90124,3446.8,3446.2,2.4791]
[1721370337406,2.90134,3446.7,3446.2,2.4791]
[1721370343119,2.90127,3446.8,3446.2,2.4791]
[1721370343319,2.90118,3446.9,3446.2,2.4791]
[1721370343642,3.191289,3446.9,3446.2,2.4791]
[1721370343948,2.90124,3446.8,3446.2,2.4791]
[1721370344536,5.35059,3447.5,3446.4,2.90151]
[1721370344537,2.90083,3447.3,3446.4,2.90151]
[1721370344739,2.90083,3447.3,3446.2,2.9017]
[1721370344740,0.580148,3447.2,3446.5,2.3632]
[1721370344942,2.90116,3446.9,3446.5,2.3632]
[1721370345147,2.90142,3446.6,3445.5,2.90229]
[1721370345451,2.90189,3446.1,3445.4,2.3632]
[1721370345743,2.902,3445.9,3445.4,2.3632]
[1721370346109,2.90209,3445.8,3445.4,2.3632]
[1721370346311,2.90222,3445.7,3445.4,2.3632]
[1721370347606,2.90226,3445.6,3445.4,2.3632]
[1721370348642,2.90233,3445.5,3444.9,2.3632]
[1721370349551,2.90244,3445.4,3444.9,2.3632]
[1721370353257,2.90251,3445.3,3444.9,2.3632]
[1721370353767,2.90259,3445.2,3444.9,2.3632]
[1721370354079,2.90259,3445.2,3444.3,2.3632]
[1721370354080,2.90275,3445.0,3444.3,2.3632]
[1721370354227,2.90275,3445.0,3444.3,5.1419699]
[1721370354424,2.90258,3445.2,3444.3,2.3632]
[1721370354425,2.90285,3444.9,3444.3,2.3632]
[1721370354669,2.90293,3444.8,3444.3,2.3632]
[1721370356848,2.90282,3445.0,3444.3,2.3632]
[1721370357274,2.90263,3445.2,3444.3,2.3632]
[1721370357429,2.90263,3445.2,3444.3,5.180221]
[1721370358761,2.90242,3445.4,3444.5,2.4841]
[1721370358985,3.0,3446.0,3444.5,2.4841]
[1721370358986,2.90234,3445.5,3444.6,2.90308]
[1721370359293,2.90243,3445.4,3444.5,2.4841]
[1721370359490,2.90243,3445.4,3444.5,6.2076971]
[1721370359830,7.45,3446.1,3445.1,2.3357]
[1721370360035,2.90178,3446.2,3445.1,5.23836]
[1721370360262,2.90198,3446.0,3445.1,5.23836]
[1721370360435,2.90178,3446.2,3445.3,2.90249]
[1721370360635,2.90178,3446.2,3445.5,2.469]
[1721370362864,2.90183,3446.1,3445.5,2.469]
[1721370363548,2.90171,3446.3,3445.5,2.469]
[1721370363933,2.90159,3446.4,3445.5,5.37132]
[1721370364131,2.90168,3446.3,3445.5,3.30218516]
[1721370365071,2.90175,3446.2,3445.5,3.30218516]
[1721370365256,2.90175,3446.2,3445.5,2.469]
[1721370366195,2.9016,3446.4,3445.5,5.37131]
[1721370366393,2.9016,3446.4,3445.6,2.90224]
[1721370366577,2.90166,3446.3,3445.5,2.469]
[1721370366885,0.290166,3446.2,3445.5,2.469]
[1721370367090,2.90166,3446.3,3445.5,2.469]
[1721370367646,2.90166,3446.3,3445.5,5.37133]
[1721370367888,2.90174,3446.2,3445.5,2.469]
[1721370368779,2.90183,3446.1,3445.5,2.469]
[1721370368962,2.90192,3446.0,3445.5,2.469]
[1721370369168,3.482279,3446.0,3445.5,2.469]
[1721370370181,2.90208,3445.8,3445.5,2.469]
[1721370370689,0.580359,3446.0,3444.9,2.2885]
[1721370370690,2.90227,3445.6,3444.9,2.2885]
[1721370373866,2.90217,3445.7,3444.9,5.19132]
[1721370375188,2.90225,3445.6,3444.9,5.19132]
[1721370375454,2.90225,3445.6,3444.9,2.2885]
[1721370375655,2.90234,3445.5,3444.9,2.2885]
[1721370375956,0.580451,3445.5,3444.9,2.2885]
[1721370376280,2.90243,3445.4,3444.9,2.2885]
[1721370377856,2.90272,3445.1,3444.3,2.278]
[1721370380799,2.90251,3445.3,3444.4,2.3936]
[1721370380984,2.90251,3445.3,3444.2,2.90343]
[1721370380985,2.90251,3445.3,3444.6,2.3936]
[1721370381184,2.90235,3445.5,3444.7,2.3936]
[1721370381373,2.90243,3445.4,3444.7,2.3936]
[1721370381907,2.90235,3445.5,3444.7,2.3936]
[1721370382422,2.90235,3445.5,3444.6,2.90301]
[1721370382423,2.90225,3445.6,3444.8,5.29645]
[1721370382920,2.90233,3445.5,3444.8,2.3936]
[1721370383676,2.90267,3445.2,3444.8,2.3936]
[1721370385150,2.90284,3444.9,3444.2,2.3936]
[1721370386320,2.90284,3444.9,3444.2,3.83521944]
[1721370386531,2.90295,3444.8,3444.2,3.83521944]
[1721370388367,2.90295,3444.8,3444.2,2.3936]